[Event "*** Titled Tuesday Blitz"]
[Site "Chess.com"]
[Date "2020.05.26"]
[Round "1"]
[White "ChessicallyInclined"]
[Black "today_good_day"]
[Result "1-0"]
[WhiteElo "2497"]
[BlackElo "2093"]
[TimeControl "180+1"]
[EndTime "10:05:05 PDT"]
[Termination "ChessicallyInclined won by resignation"]

1. d4 {[%clk 0:03:00.9]} 1... d5 {[%clk 0:02:59.8]} 2. c4 {[%clk 0:03:00.7]}
2... c6 {[%clk 0:02:59.8]} 3. Nc3 {[%clk 0:02:59.6]} 3... Nf6 {[%clk 0:02:59.3]}
4. Nf3 {[%clk 0:02:59.7]} 4... a6 {[%clk 0:02:59.3]} 5. c5 {[%clk 0:02:59.4]}
5... Nbd7 {[%clk 0:02:56.6]} 6. e3 {[%clk 0:02:57.6]} 6... Qc7 {[%clk
0:02:51.3]} 7. b4 {[%clk 0:02:51.8]} 7... e5 {[%clk 0:02:45.9]} 8. a4 {[%clk
0:02:46.4]} 8... Be7 {[%clk 0:02:30.2]} 9. Bb2 {[%clk 0:02:43.6]} 9... O-O
{[%clk 0:02:10.5]} 10. Be2 {[%clk 0:02:17.4]} 10... e4 {[%clk 0:02:01.7]} 11.
Nd2 {[%clk 0:02:15.8]} 11... b6 {[%clk 0:02:00.6]} 12. Nb3 {[%clk 0:02:11.1]}
12... bxc5 {[%clk 0:01:47.6]} 13. dxc5 {[%clk 0:02:10.1]} 13... Ne5 {[%clk
0:01:44.5]} 14. Nd4 {[%clk 0:02:09.4]} 14... Rb8 {[%clk 0:01:35.6]} 15. Ba3
{[%clk 0:02:07]} 15... a5 {[%clk 0:01:16.9]} 16. b5 {[%clk 0:01:57.8]} 16...
cxb5 {[%clk 0:01:16.3]} 17. Ncxb5 {[%clk 0:01:56.4]} 17... Qd8 {[%clk
0:00:53.9]} 18. c6 {[%clk 0:01:35.6]} 18... Bxa3 {[%clk 0:00:49.9]} 19. c7
{[%clk 0:01:33.8]} 19... Bb4+ {[%clk 0:00:48.6]} 20. Kf1 {[%clk 0:01:33.3]} 1-0

[Event "*** Titled Tuesday Blitz"]
[Site "Chess.com"]
[Date "2020.05.26"]
[Round "1"]
[White "Playgood28"]
[Black "GregShahade"]
[Result "1/2-1/2"]
[WhiteElo "2303"]
[BlackElo "2622"]
[TimeControl "180+1"]
[EndTime "10:05:07 PDT"]
[Termination "Game drawn by agreement"]

1. d4 {[%clk 0:03:00]} 1... Nf6 {[%clk 0:02:59.7]} 2. c4 {[%clk 0:02:59.4]} 2...
g6 {[%clk 0:03:00]} 3. Nc3 {[%clk 0:02:59.4]} 3... d5 {[%clk 0:03:00.3]} 4. e3
{[%clk 0:02:58.6]} 4... Bg7 {[%clk 0:02:59.8]} 5. Nf3 {[%clk 0:02:59]} 5... O-O
{[%clk 0:02:58.5]} 6. b4 {[%clk 0:02:59.3]} 6... b6 {[%clk 0:02:55.3]} 7. Ba3
{[%clk 0:02:56.9]} 7... Bb7 {[%clk 0:02:54.5]} 8. Rc1 {[%clk 0:02:54.5]} 8...
Nbd7 {[%clk 0:02:52.3]} 9. Qb3 {[%clk 0:02:53.2]} 9... e6 {[%clk 0:02:44.6]} 10.
b5 {[%clk 0:02:49.7]} 10... Re8 {[%clk 0:02:43.3]} 11. cxd5 {[%clk 0:02:36.8]}
11... exd5 {[%clk 0:02:40.4]} 12. Be2 {[%clk 0:02:36]} 12... a6 {[%clk
0:02:32.6]} 13. O-O {[%clk 0:02:33]} 13... Ne4 {[%clk 0:02:10.1]} 14. Nxe4
{[%clk 0:02:24.9]} 14... dxe4 {[%clk 0:02:08]} 15. Nd2 {[%clk 0:02:19.4]} 15...
Nf6 {[%clk 0:01:46.9]} 16. bxa6 {[%clk 0:02:02.8]} 16... Bxa6 {[%clk 0:01:44.2]}
17. Bxa6 {[%clk 0:02:02.7]} 17... Rxa6 {[%clk 0:01:45.1]} 18. Bb2 {[%clk
0:02:02.4]} 18... Nd5 {[%clk 0:01:35.7]} 19. a3 {[%clk 0:02:00.3]} 19... h5
{[%clk 0:01:20.9]} 20. Qc2 {[%clk 0:01:41.5]} 20... Ra7 {[%clk 0:01:15.9]} 21.
Nxe4 {[%clk 0:01:34.5]} 21... Qe7 {[%clk 0:01:14.4]} 22. Nc3 {[%clk 0:01:28.1]}
22... Nxc3 {[%clk 0:01:10.2]} 23. Qxc3 {[%clk 0:01:23.1]} 23... c5 {[%clk
0:01:05.2]} 24. Qb3 {[%clk 0:01:21.9]} 24... cxd4 {[%clk 0:01:01.3]} 25. Bxd4
{[%clk 0:01:15.7]} 25... Bxd4 {[%clk 0:00:59.3]} 26. exd4 {[%clk 0:01:14.6]}
1/2-1/2

[Event "*** Titled Tuesday Blitz"]
[Site "Chess.com"]
[Date "2020.05.26"]
[Round "1"]
[White "DaggiGretarsson"]
[Black "ArnieChipmunk"]
[Result "1-0"]
[WhiteElo "2627"]
[BlackElo "2291"]
[TimeControl "180+1"]
[EndTime "10:05:09 PDT"]
[Termination "DaggiGretarsson won by resignation"]

1. d4 {[%clk 0:02:58.7]} 1... d5 {[%clk 0:02:59.6]} 2. c4 {[%clk 0:02:58]} 2...
e6 {[%clk 0:02:59.8]} 3. Nc3 {[%clk 0:02:57.6]} 3... Nf6 {[%clk 0:02:59.3]} 4.
Bf4 {[%clk 0:02:57.1]} 4... Be7 {[%clk 0:02:56.5]} 5. e3 {[%clk 0:02:56.7]} 5...
O-O {[%clk 0:02:57]} 6. Qc2 {[%clk 0:02:55.8]} 6... b6 {[%clk 0:02:44.1]} 7. Nf3
{[%clk 0:02:45.4]} 7... Bb7 {[%clk 0:02:36.9]} 8. cxd5 {[%clk 0:02:39.2]} 8...
Nxd5 {[%clk 0:02:36.1]} 9. Nxd5 {[%clk 0:02:38.6]} 9... Bxd5 {[%clk 0:02:24.4]}
10. Bd3 {[%clk 0:02:33.4]} 10... Bb4+ {[%clk 0:02:01.7]} 11. Ke2 {[%clk
0:02:32.2]} 11... Bd6 {[%clk 0:01:15.2]} 12. Bxd6 {[%clk 0:02:16.8]} 12... cxd6
{[%clk 0:01:03.3]} 13. Bxh7+ {[%clk 0:02:16]} 13... Kh8 {[%clk 0:01:01]} 14. Be4
{[%clk 0:02:15.6]} 14... Nc6 {[%clk 0:00:50.4]} 15. Bxd5 {[%clk 0:02:13.5]}
15... Nb4 {[%clk 0:00:51]} 16. Qe4 {[%clk 0:02:08.3]} 16... Nxd5 {[%clk
0:00:49]} 17. Rhc1 {[%clk 0:02:01.9]} 17... Qd7 {[%clk 0:00:46.4]} 18. Ng5
{[%clk 0:01:49.1]} 18... Qb5+ {[%clk 0:00:43.9]} 19. Qd3 {[%clk 0:01:41.8]}
19... Qxd3+ {[%clk 0:00:28.3]} 20. Kxd3 {[%clk 0:01:41.3]} 20... Kg8 {[%clk
0:00:26.5]} 21. a3 {[%clk 0:01:39.1]} 21... Rac8 {[%clk 0:00:26]} 22. Ne4 {[%clk
0:01:37.7]} 1-0

[Event "*** Titled Tuesday Blitz"]
[Site "Chess.com"]
[Date "2020.05.26"]
[Round "1"]
[White "Julianos82"]
[Black "Alexander_Donchenko"]
[Result "0-1"]
[WhiteElo "2316"]
[BlackElo "2679"]
[TimeControl "180+1"]
[EndTime "10:05:12 PDT"]
[Termination "Alexander_Donchenko won by resignation"]

1. d4 {[%clk 0:03:00.9]} 1... Nf6 {[%clk 0:02:58.8]} 2. Nf3 {[%clk 0:03:00.2]}
2... d5 {[%clk 0:02:58.6]} 3. Bf4 {[%clk 0:02:59]} 3... c5 {[%clk 0:02:58.5]} 4.
e3 {[%clk 0:02:58.7]} 4... Nc6 {[%clk 0:02:59]} 5. c3 {[%clk 0:02:57.5]} 5...
Qb6 {[%clk 0:02:58.9]} 6. Qb3 {[%clk 0:02:49.3]} 6... c4 {[%clk 0:02:58.3]} 7.
Qxb6 {[%clk 0:02:49]} 7... axb6 {[%clk 0:02:59.2]} 8. Nbd2 {[%clk 0:02:26.8]}
8... b5 {[%clk 0:02:58.2]} 9. Ne5 {[%clk 0:02:21.1]} 9... Bf5 {[%clk 0:02:54.7]}
10. a3 {[%clk 0:02:17]} 10... b4 {[%clk 0:02:52.9]} 11. Nxc6 {[%clk 0:02:13.6]}
11... bxc3 {[%clk 0:02:53.2]} 12. bxc3 {[%clk 0:01:54.7]} 12... bxc6 {[%clk
0:02:53.3]} 13. Be2 {[%clk 0:01:52.5]} 13... e6 {[%clk 0:02:52.9]} 14. O-O
{[%clk 0:01:48.1]} 14... Kd7 {[%clk 0:02:47.7]} 15. Nf3 {[%clk 0:01:30.8]} 15...
Bd6 {[%clk 0:02:40.3]} 16. Bxd6 {[%clk 0:01:27.5]} 16... Kxd6 {[%clk 0:02:41.2]}
17. Ne5 {[%clk 0:01:27.5]} 17... Ra7 {[%clk 0:02:32.6]} 18. f3 {[%clk
0:01:27.1]} 18... Rha8 {[%clk 0:02:20]} 19. e4 {[%clk 0:01:25]} 19... dxe4
{[%clk 0:02:19]} 20. Nxc4+ {[%clk 0:01:19.6]} 20... Ke7 {[%clk 0:02:19.2]} 21.
g4 {[%clk 0:01:13.3]} 21... Bg6 {[%clk 0:02:19.3]} 22. g5 {[%clk 0:00:56.3]}
22... Nd5 {[%clk 0:02:18.9]} 23. Rfc1 {[%clk 0:00:51.9]} 23... e3 {[%clk
0:01:58.1]} 24. Ne5 {[%clk 0:00:41.9]} 24... Rxa3 {[%clk 0:01:56.2]} 25. Rxa3
{[%clk 0:00:39.5]} 25... Rxa3 {[%clk 0:01:57.1]} 26. Nxc6+ {[%clk 0:00:28.4]}
26... Kd6 {[%clk 0:01:57.2]} 27. Ne5 {[%clk 0:00:24.8]} 27... Rxc3 {[%clk
0:01:54.7]} 28. Rxc3 {[%clk 0:00:19.2]} 28... Nxc3 {[%clk 0:01:54.7]} 29. Kf1
{[%clk 0:00:19.4]} 29... Kd5 {[%clk 0:01:52.7]} 0-1

[Event "*** Titled Tuesday Blitz"]
[Site "Chess.com"]
[Date "2020.05.26"]
[Round "1"]
[White "Aleksandar-Topalov"]
[Black "TheBigBoss04"]
[Result "0-1"]
[WhiteElo "2363"]
[BlackElo "2724"]
[TimeControl "180+1"]
[EndTime "10:05:14 PDT"]
[Termination "TheBigBoss04 won by resignation"]

1. b3 {[%clk 0:02:52.5]} 1... d5 {[%clk 0:02:58]} 2. Bb2 {[%clk 0:02:52.2]} 2...
Bg4 {[%clk 0:02:58.5]} 3. f3 {[%clk 0:02:52]} 3... Bh5 {[%clk 0:02:56.8]} 4. e4
{[%clk 0:02:52.3]} 4... dxe4 {[%clk 0:02:53.9]} 5. Qe2 {[%clk 0:02:52]} 5... c6
{[%clk 0:02:52.9]} 6. Nc3 {[%clk 0:02:51.7]} 6... Nf6 {[%clk 0:02:38.4]} 7. Nxe4
{[%clk 0:02:50.8]} 7... Nxe4 {[%clk 0:02:38.7]} 8. Qxe4 {[%clk 0:02:50.9]} 8...
Qd5 {[%clk 0:02:36.2]} 9. Qxd5 {[%clk 0:02:47.5]} 9... cxd5 {[%clk 0:02:35.8]}
10. Bb5+ {[%clk 0:02:47.4]} 10... Nc6 {[%clk 0:02:35.8]} 11. Ne2 {[%clk
0:02:47.9]} 11... e6 {[%clk 0:02:34.2]} 12. Nf4 {[%clk 0:02:43.3]} 12... Bg6
{[%clk 0:02:32.5]} 13. Nxg6 {[%clk 0:02:43.2]} 13... hxg6 {[%clk 0:02:32.9]} 14.
O-O-O {[%clk 0:02:32.8]} 14... Rc8 {[%clk 0:02:29.3]} 15. Kb1 {[%clk 0:02:31.8]}
15... a6 {[%clk 0:02:28.9]} 16. Bxc6+ {[%clk 0:02:24.6]} 16... Rxc6 {[%clk
0:02:29.8]} 17. h3 {[%clk 0:02:25]} 17... b5 {[%clk 0:02:19.5]} 18. Rhe1 {[%clk
0:02:23.1]} 18... f6 {[%clk 0:02:12.7]} 19. Re2 {[%clk 0:02:20.7]} 19... Kf7
{[%clk 0:02:12.5]} 20. Rde1 {[%clk 0:02:19.8]} 20... Bb4 {[%clk 0:02:10.1]} 21.
a3 {[%clk 0:02:18.2]} 21... Ba5 {[%clk 0:02:10]} 22. b4 {[%clk 0:02:11.4]} 22...
Bb6 {[%clk 0:02:08.4]} 23. d3 {[%clk 0:02:09.2]} 23... a5 {[%clk 0:02:01.2]} 24.
f4 {[%clk 0:01:56.2]} 24... axb4 {[%clk 0:01:55.9]} 25. axb4 {[%clk 0:01:55.6]}
25... Ra8 {[%clk 0:01:52.4]} 26. d4 {[%clk 0:01:51.4]} 26... Ra4 {[%clk
0:01:46.7]} 27. c3 {[%clk 0:01:51.7]} 27... Ra7 {[%clk 0:01:44]} 28. h4 {[%clk
0:01:51]} 28... Ra8 {[%clk 0:01:35.9]} 29. g3 {[%clk 0:01:50.9]} 29... Rh8
{[%clk 0:01:34.9]} 30. Rh1 {[%clk 0:01:47.6]} 30... Rc4 {[%clk 0:01:30.1]} 31.
Ka2 {[%clk 0:01:45]} 31... Ra8+ {[%clk 0:01:18.1]} 32. Kb3 {[%clk 0:01:44.2]}
32... Rc6 {[%clk 0:01:15.8]} 33. Ra1 {[%clk 0:01:42.4]} 33... Rxa1 {[%clk
0:01:15.5]} 34. Bxa1 {[%clk 0:01:42.7]} 34... Rc7 {[%clk 0:01:15.8]} 35. Ra2
{[%clk 0:01:42.8]} 35... Ra7 {[%clk 0:01:16]} 36. Rxa7+ {[%clk 0:01:38.6]} 36...
Bxa7 {[%clk 0:01:16.9]} 37. Kc2 {[%clk 0:01:38.8]} 37... g5 {[%clk 0:01:15.7]}
38. hxg5 {[%clk 0:01:36.8]} 38... fxg5 {[%clk 0:01:15.4]} 39. Kd3 {[%clk
0:01:35.9]} 39... gxf4 {[%clk 0:01:15.7]} 40. gxf4 {[%clk 0:01:35.7]} 40... Kg6
{[%clk 0:01:16.1]} 41. Ke3 {[%clk 0:01:35.9]} 41... Kf5 {[%clk 0:01:16.3]} 42.
Kf3 {[%clk 0:01:33.1]} 42... Bb8 {[%clk 0:01:16.4]} 43. Bb2 {[%clk 0:01:32.9]}
43... Bxf4 {[%clk 0:01:16.5]} 44. Ba3 {[%clk 0:01:30.1]} 44... g5 {[%clk
0:01:15.9]} 0-1

[Event "*** Titled Tuesday Blitz"]
[Site "Chess.com"]
[Date "2020.05.26"]
[Round "1"]
[White "Tesla37"]
[Black "Tsyhanchuk_Stanislav"]
[Result "1-0"]
[WhiteElo "2957"]
[BlackElo "2444"]
[TimeControl "180+1"]
[EndTime "10:05:15 PDT"]
[Termination "Tesla37 won by checkmate"]

1. e4 {[%clk 0:02:59.9]} 1... c5 {[%clk 0:02:59.1]} 2. Nf3 {[%clk 0:02:59.2]}
2... Nc6 {[%clk 0:02:59.3]} 3. Nc3 {[%clk 0:02:58.8]} 3... e6 {[%clk 0:02:57.5]}
4. d4 {[%clk 0:02:57.4]} 4... cxd4 {[%clk 0:02:57.8]} 5. Nxd4 {[%clk 0:02:57.9]}
5... Qb6 {[%clk 0:02:57.7]} 6. Ndb5 {[%clk 0:02:49.1]} 6... a6 {[%clk
0:02:41.3]} 7. Nd6+ {[%clk 0:02:43.1]} 7... Bxd6 {[%clk 0:02:40.5]} 8. Qxd6
{[%clk 0:02:42.2]} 8... Nf6 {[%clk 0:02:27.6]} 9. Be2 {[%clk 0:02:23.7]} 9...
Qd4 {[%clk 0:02:06.4]} 10. Qg3 {[%clk 0:02:12.6]} 10... Nxe4 {[%clk 0:01:39.6]}
11. Nxe4 {[%clk 0:02:10.2]} 11... Qxe4 {[%clk 0:01:39.4]} 12. Qxg7 {[%clk
0:02:06.2]} 12... Qd4 {[%clk 0:01:31.6]} 13. Qg3 {[%clk 0:02:01.7]} 13... Qe5
{[%clk 0:01:18.7]} 14. Bf4 {[%clk 0:01:58.3]} 14... Qxb2 {[%clk 0:01:17.1]} 15.
O-O {[%clk 0:01:57.8]} 15... Nd4 {[%clk 0:00:30.5]} 16. Bd3 {[%clk 0:01:47]}
16... f6 {[%clk 0:00:25.6]} 17. Qg7 {[%clk 0:01:40.6]} 17... Rf8 {[%clk
0:00:25.5]} 18. Bd6 {[%clk 0:01:38]} 18... Rf7 {[%clk 0:00:16]} 19. Qh8+ {[%clk
0:01:35]} 19... Rf8 {[%clk 0:00:15.5]} 20. Qxf8# {[%clk 0:01:31.2]} 1-0

[Event "*** Titled Tuesday Blitz"]
[Site "Chess.com"]
[Date "2020.05.26"]
[Round "1"]
[White "doctorcristian"]
[Black "MrMatesM"]
[Result "1-0"]
[WhiteElo "2294"]
[BlackElo "2596"]
[TimeControl "180+1"]
[EndTime "10:05:16 PDT"]
[Termination "doctorcristian won by resignation"]

1. d4 {[%clk 0:02:59.3]} 1... Nf6 {[%clk 0:02:59.9]} 2. Nc3 {[%clk 0:02:58.5]}
2... d5 {[%clk 0:02:59.6]} 3. Bf4 {[%clk 0:02:58.4]} 3... e6 {[%clk 0:02:58.6]}
4. Nb5 {[%clk 0:02:56]} 4... Na6 {[%clk 0:02:55.2]} 5. e3 {[%clk 0:02:55.1]}
5... c6 {[%clk 0:02:55.5]} 6. Nc3 {[%clk 0:02:54.7]} 6... Nc7 {[%clk 0:02:53.9]}
7. Nf3 {[%clk 0:02:53.3]} 7... Bb4 {[%clk 0:02:48.7]} 8. Bd3 {[%clk 0:02:52.6]}
8... Ne4 {[%clk 0:02:42.3]} 9. Bxe4 {[%clk 0:02:50.2]} 9... dxe4 {[%clk
0:02:42.5]} 10. Nd2 {[%clk 0:02:49.5]} 10... f5 {[%clk 0:02:35.9]} 11. O-O
{[%clk 0:02:40.7]} 11... Nd5 {[%clk 0:02:35.5]} 12. Nxd5 {[%clk 0:02:36.9]}
12... exd5 {[%clk 0:02:35.4]} 13. Be5 {[%clk 0:02:34.9]} 13... O-O {[%clk
0:02:33.2]} 14. a3 {[%clk 0:02:34.6]} 14... Bd6 {[%clk 0:02:33.2]} 15. f4 {[%clk
0:02:33.5]} 15... b6 {[%clk 0:02:29.3]} 16. Kh1 {[%clk 0:02:30.7]} 16... Ba6
{[%clk 0:02:29.4]} 17. Rg1 {[%clk 0:02:30.6]} 17... Bc8 {[%clk 0:02:15.8]} 18.
c4 {[%clk 0:02:14]} 18... Bxe5 {[%clk 0:02:13.1]} 19. dxe5 {[%clk 0:02:11.7]}
19... Be6 {[%clk 0:02:10.7]} 20. cxd5 {[%clk 0:02:06.8]} 20... Qxd5 {[%clk
0:02:08.6]} 21. Nb1 {[%clk 0:01:45.7]} 21... Rfd8 {[%clk 0:02:03.1]} 22. Nc3
{[%clk 0:01:44.7]} 22... Qd3 {[%clk 0:02:00.7]} 23. Re1 {[%clk 0:01:38.3]} 23...
Rd7 {[%clk 0:01:52.2]} 24. Qh5 {[%clk 0:01:30.1]} 24... Qc2 {[%clk 0:01:50.5]}
25. Re2 {[%clk 0:01:27.7]} 25... Qb3 {[%clk 0:01:48.6]} 26. h3 {[%clk
0:01:22.9]} 26... Rad8 {[%clk 0:01:47]} 27. g4 {[%clk 0:01:17.4]} 27... g6
{[%clk 0:01:33.2]} 28. Qh4 {[%clk 0:01:15.4]} 28... Rd2 {[%clk 0:01:12]} 29.
Rae1 {[%clk 0:01:14]} 29... Qxb2 {[%clk 0:01:10.9]} 30. Qxd8+ {[%clk 0:01:12.5]}
1-0

[Event "*** Titled Tuesday Blitz"]
[Site "Chess.com"]
[Date "2020.05.26"]
[Round "1"]
[White "VitaliyBernadskiy"]
[Black "Nathan_Filgueiras"]
[Result "1-0"]
[WhiteElo "2685"]
[BlackElo "2320"]
[TimeControl "180+1"]
[EndTime "10:05:19 PDT"]
[Termination "VitaliyBernadskiy won by resignation"]

1. d4 {[%clk 0:03:00.5]} 1... Nf6 {[%clk 0:02:58.1]} 2. c3 {[%clk 0:03:00.5]}
2... e6 {[%clk 0:02:54.2]} 3. Bf4 {[%clk 0:02:57.5]} 3... c5 {[%clk 0:02:53.8]}
4. e3 {[%clk 0:02:57.9]} 4... Nc6 {[%clk 0:02:49.7]} 5. Bd3 {[%clk 0:02:57.1]}
5... d5 {[%clk 0:02:45.2]} 6. Nd2 {[%clk 0:02:56.7]} 6... Qb6 {[%clk 0:02:38.7]}
7. Rb1 {[%clk 0:02:55.5]} 7... Be7 {[%clk 0:02:35.8]} 8. Ngf3 {[%clk 0:02:54.6]}
8... Qd8 {[%clk 0:02:25.1]} 9. Qe2 {[%clk 0:02:46.3]} 9... O-O {[%clk
0:02:20.3]} 10. h4 {[%clk 0:02:44.9]} 10... Re8 {[%clk 0:02:08.1]} 11. h5 {[%clk
0:02:42]} 11... h6 {[%clk 0:02:08]} 12. Bc2 {[%clk 0:02:32]} 12... b6 {[%clk
0:01:57.9]} 13. g4 {[%clk 0:02:07.4]} 13... Nh7 {[%clk 0:01:47.9]} 14. Rg1
{[%clk 0:02:02.4]} 14... a5 {[%clk 0:01:38.6]} 15. Bd3 {[%clk 0:01:56.3]} 15...
Ng5 {[%clk 0:01:32.6]} 16. Nxg5 {[%clk 0:01:56.2]} 16... Bxg5 {[%clk 0:01:32.2]}
17. Bxg5 {[%clk 0:01:54.2]} 17... Qxg5 {[%clk 0:01:31.8]} 18. f4 {[%clk
0:01:51.5]} 18... Qh4+ {[%clk 0:01:24.6]} 19. Kd1 {[%clk 0:01:51.5]} 19... Bd7
{[%clk 0:01:03.6]} 20. Nf3 {[%clk 0:01:51.2]} 20... Qh3 {[%clk 0:00:54]} 21. Qf2
{[%clk 0:01:37.4]} 21... cxd4 {[%clk 0:00:29.7]} 22. exd4 {[%clk 0:01:36.8]}
22... e5 {[%clk 0:00:26.6]} 23. Bf1 {[%clk 0:01:36.4]} 23... Qxg4 {[%clk
0:00:19.2]} 24. Rxg4 {[%clk 0:01:33.6]} 24... Bxg4 {[%clk 0:00:20.1]} 25. fxe5
{[%clk 0:01:33.5]} 1-0

[Event "*** Titled Tuesday Blitz"]
[Site "Chess.com"]
[Date "2020.05.26"]
[Round "1"]
[White "AleksanderHnydiuk"]
[Black "floplover"]
[Result "0-1"]
[WhiteElo "2553"]
[BlackElo "2238"]
[TimeControl "180+1"]
[EndTime "10:05:21 PDT"]
[Termination "floplover won by resignation"]

1. Nf3 {[%clk 0:03:00.7]} 1... d5 {[%clk 0:02:50]} 2. d4 {[%clk 0:03:00.2]} 2...
e6 {[%clk 0:02:48]} 3. c4 {[%clk 0:03:00.2]} 3... Nf6 {[%clk 0:02:48.1]} 4. g3
{[%clk 0:03:00]} 4... Be7 {[%clk 0:02:47.4]} 5. Bg2 {[%clk 0:03:00.2]} 5... O-O
{[%clk 0:02:47.1]} 6. Qc2 {[%clk 0:03:00.4]} 6... dxc4 {[%clk 0:02:41.2]} 7.
Qxc4 {[%clk 0:03:01.3]} 7... a6 {[%clk 0:02:41.2]} 8. Qc2 {[%clk 0:03:01.2]}
8... Nc6 {[%clk 0:02:34.4]} 9. O-O {[%clk 0:02:58.8]} 9... Bd7 {[%clk
0:02:08.4]} 10. Rd1 {[%clk 0:02:57.7]} 10... Nb4 {[%clk 0:02:04.8]} 11. Qb3
{[%clk 0:02:54.9]} 11... Bc6 {[%clk 0:02:04.1]} 12. a3 {[%clk 0:02:51.8]} 12...
Bd5 {[%clk 0:01:51.9]} 13. Qc3 {[%clk 0:02:48.5]} 13... Ne4 {[%clk 0:01:49.7]}
14. axb4 {[%clk 0:02:26.2]} 14... Nxc3 {[%clk 0:01:49.3]} 15. bxc3 {[%clk
0:02:27.1]} 15... c6 {[%clk 0:01:46.2]} 16. Nbd2 {[%clk 0:02:26.7]} 16... Bxf3
{[%clk 0:01:46]} 17. Bxf3 {[%clk 0:02:21.6]} 17... a5 {[%clk 0:01:46.9]} 18. b5
{[%clk 0:02:20.1]} 18... cxb5 {[%clk 0:01:44.5]} 19. Bxb7 {[%clk 0:02:19.7]}
19... Ra7 {[%clk 0:01:44.2]} 20. Bf3 {[%clk 0:02:13.7]} 20... b4 {[%clk
0:01:41.3]} 21. cxb4 {[%clk 0:02:13]} 21... Qxd4 {[%clk 0:01:41]} 22. Rb1 {[%clk
0:01:58.2]} 22... axb4 {[%clk 0:01:40.2]} 23. Bb2 {[%clk 0:01:56.2]} 23... Qc5
{[%clk 0:01:29.3]} 24. Ne4 {[%clk 0:01:54.3]} 24... Qb5 {[%clk 0:01:25.1]} 25.
Rdc1 {[%clk 0:01:47.2]} 25... f5 {[%clk 0:01:23.1]} 26. Nd2 {[%clk 0:01:38.7]}
26... Bf6 {[%clk 0:01:22.4]} 27. Bxf6 {[%clk 0:01:35.5]} 27... Rxf6 {[%clk
0:01:23.3]} 28. Nc4 {[%clk 0:01:29.6]} 28... Rc7 {[%clk 0:01:16.7]} 29. Nd6
{[%clk 0:01:29.1]} 29... Rxc1+ {[%clk 0:01:15.8]} 30. Rxc1 {[%clk 0:01:30]}
30... Qb8 {[%clk 0:01:07.5]} 31. Rc8+ {[%clk 0:01:28.7]} 31... Qxc8 {[%clk
0:01:07.3]} 32. Nxc8 {[%clk 0:01:29.6]} 32... b3 {[%clk 0:01:05.5]} 0-1

[Event "*** Titled Tuesday Blitz"]
[Site "Chess.com"]
[Date "2020.05.26"]
[Round "1"]
[White "valeriocarnicelli"]
[Black "Zmeeed63"]
[Result "1-0"]
[WhiteElo "2565"]
[BlackElo "2212"]
[TimeControl "180+1"]
[EndTime "10:05:22 PDT"]
[Termination "valeriocarnicelli won by checkmate"]

1. e4 {[%clk 0:02:59.3]} 1... Nc6 {[%clk 0:02:50.1]} 2. d4 {[%clk 0:02:59.1]}
2... d5 {[%clk 0:02:48.2]} 3. exd5 {[%clk 0:02:58.8]} 3... Qxd5 {[%clk
0:02:47.3]} 4. Nf3 {[%clk 0:02:59]} 4... Bg4 {[%clk 0:02:46.6]} 5. Be2 {[%clk
0:02:59.4]} 5... O-O-O {[%clk 0:02:45.6]} 6. c3 {[%clk 0:02:59.6]} 6... e5
{[%clk 0:02:41.7]} 7. Be3 {[%clk 0:02:59.5]} 7... exd4 {[%clk 0:02:37.1]} 8.
cxd4 {[%clk 0:02:59.4]} 8... Bb4+ {[%clk 0:02:37.4]} 9. Nc3 {[%clk 0:02:59.3]}
9... Qa5 {[%clk 0:02:37.4]} 10. O-O {[%clk 0:02:57.6]} 10... Nf6 {[%clk
0:02:29.4]} 11. h3 {[%clk 0:02:38]} 11... Bh5 {[%clk 0:02:01.9]} 12. Rc1 {[%clk
0:02:27.9]} 12... Rhe8 {[%clk 0:01:49.4]} 13. a3 {[%clk 0:02:26.7]} 13... Bxc3
{[%clk 0:00:49.1]} 14. Rxc3 {[%clk 0:02:24.5]} 14... Bxf3 {[%clk 0:00:48.9]} 15.
Bxf3 {[%clk 0:02:24.5]} 15... Ne5 {[%clk 0:00:49.2]} 16. Be2 {[%clk 0:01:45.8]}
16... Nd5 {[%clk 0:00:25.1]} 17. Rc5 {[%clk 0:01:39.7]} 17... Nxe3 {[%clk
0:00:24.6]} 18. Rxa5 {[%clk 0:01:39.7]} 18... Nxd1 {[%clk 0:00:24.6]} 19. Rxd1
{[%clk 0:01:39.7]} 19... Nc6 {[%clk 0:00:24.3]} 20. Ra4 {[%clk 0:01:39.4]} 20...
Rxe2 {[%clk 0:00:22.2]} 21. d5 {[%clk 0:01:40]} 21... Ne5 {[%clk 0:00:22.3]} 22.
Rxa7 {[%clk 0:01:40.2]} 22... f6 {[%clk 0:00:22.1]} 23. a4 {[%clk 0:01:34.6]}
23... Rxb2 {[%clk 0:00:21.9]} 24. f4 {[%clk 0:01:27.6]} 24... Nc4 {[%clk
0:00:22]} 25. Re1 {[%clk 0:01:27.9]} 25... Nd6 {[%clk 0:00:22.9]} 26. Re7 {[%clk
0:01:26.2]} 26... Rb4 {[%clk 0:00:23.4]} 27. Ra8# {[%clk 0:01:25.7]} 1-0

[Event "*** Titled Tuesday Blitz"]
[Site "Chess.com"]
[Date "2020.05.26"]
[Round "1"]
[White "tan275"]
[Black "Tlerus"]
[Result "0-1"]
[WhiteElo "2203"]
[BlackElo "2553"]
[TimeControl "180+1"]
[EndTime "10:05:22 PDT"]
[Termination "Tlerus won by resignation"]

1. d4 {[%clk 0:02:58.9]} 1... Nf6 {[%clk 0:02:59.8]} 2. c4 {[%clk 0:02:55.1]}
2... e5 {[%clk 0:02:59.7]} 3. dxe5 {[%clk 0:02:52.6]} 3... Ne4 {[%clk 0:03:00]}
4. a3 {[%clk 0:02:51.2]} 4... d6 {[%clk 0:02:59.4]} 5. Nf3 {[%clk 0:02:48.5]}
5... Nc6 {[%clk 0:02:59.2]} 6. g3 {[%clk 0:02:45]} 6... Bf5 {[%clk 0:02:55.5]}
7. Bg2 {[%clk 0:02:44.7]} 7... dxe5 {[%clk 0:02:54.1]} 8. O-O {[%clk 0:02:42.6]}
8... Bd6 {[%clk 0:02:50.4]} 9. Nh4 {[%clk 0:02:37.5]} 9... g6 {[%clk 0:02:49.4]}
10. Bh6 {[%clk 0:02:33]} 10... Qd7 {[%clk 0:02:40]} 11. Nc3 {[%clk 0:02:25.8]}
11... Nxc3 {[%clk 0:02:38.4]} 12. bxc3 {[%clk 0:02:26.6]} 12... Be6 {[%clk
0:02:37]} 13. Qa4 {[%clk 0:02:22]} 13... Ne7 {[%clk 0:02:24.9]} 14. Qxd7+ {[%clk
0:02:19]} 14... Kxd7 {[%clk 0:02:23.7]} 15. Bxb7 {[%clk 0:02:18.5]} 15... Rab8
{[%clk 0:02:23.5]} 16. Bg2 {[%clk 0:02:15.9]} 16... Bxc4 {[%clk 0:02:23.3]} 17.
Rfb1 {[%clk 0:02:00.5]} 17... Bxe2 {[%clk 0:02:15.4]} 18. Bh3+ {[%clk 0:01:42]}
18... f5 {[%clk 0:02:14.1]} 19. Bg5 {[%clk 0:01:38.6]} 19... Bd3 {[%clk
0:02:07.2]} 20. Rd1 {[%clk 0:01:35.5]} 20... e4 {[%clk 0:02:03.4]} 21. f3 {[%clk
0:01:26]} 21... Nd5 {[%clk 0:01:44.7]} 22. fxe4 {[%clk 0:01:23.5]} 22... Bxe4
{[%clk 0:01:42.8]} 23. Bg2 {[%clk 0:01:13.1]} 23... Nxc3 {[%clk 0:01:40.7]} 24.
Rd2 {[%clk 0:01:04.6]} 24... Rb1+ {[%clk 0:01:31.4]} 25. Rxb1 {[%clk 0:01:02.7]}
25... Nxb1 {[%clk 0:01:32.3]} 26. Rb2 {[%clk 0:00:56.2]} 26... Nxa3 {[%clk
0:01:30.7]} 27. Bxe4 {[%clk 0:00:51.2]} 27... fxe4 {[%clk 0:01:31.6]} 28. Bf6
{[%clk 0:00:47.6]} 28... Re8 {[%clk 0:01:30]} 29. Bd4 {[%clk 0:00:45]} 29... c5
{[%clk 0:01:28.4]} 30. Bc3 {[%clk 0:00:44]} 30... Kc6 {[%clk 0:01:26]} 0-1